[Event "XTX Markets London Classic-Elite 2024"]
[Site "London"]
[Date "2024.12.06"]
[Round "7.2"]
[White "Adams, Michael"]
[Black "Hong, Andrew"]
[Result "1/2-1/2"]
[WhiteElo "2662"]
[BlackElo "2572"]
[Annotator "TA"]
[PlyCount "75"]
[EventDate "2024.??.??"]
[TimeControl "60"]

{[%evp 12,75,16,0,0,0,0,0,0,-1,6,0,31,19,17,14,27,17,29,12,37,19,2,24,18,16,39,1,35,41,33,0,0,-2,-4,-6,0,0,18,0,0,-6,18,-12,-9,-18,0,0,18,22,20,36,24,16,24,22,33,0,0,0,0,0,0,0,0,0]} 1. e4 {[%emt 0:00:03]} c5 {[%emt 0:00:30]} 2. Nf3 {[%emt 0:00:08]} d6 {[%emt 0:00:17]} 3. Nc3 {[%emt 0:00:07]} Nf6 {[%emt 0:00:16]} 4. d4 {[%emt 0:00:07]} cxd4 {[%emt 0:00:13]} 5. Qxd4 {[%emt 0:00:06]} Nc6 {[%emt 0:01:09]} 6. Qe3 {[%emt 0:00:30] B53: Sicilian: 2...d6: Lines with Qxd4.} g6 {[%emt 0:02:21]} 7. Bc4 {[%emt 0:00:52]} Bg7 {[%emt 0:01:13]} 8. h3 $1 {[%emt 0:00:21] 8.h3 scores better than 8.0-0.} O-O {[%emt 0:02:23]} 9. O-O {[%emt 0:00:06]} Na5 {[%emt 0:11:40]} ({RR} 9... Nd7 10. Rd1 b6 11. Nd5 Bb7 12. c3 Rc8 13. Bb3 Nc5 14. Bc2 e6 15. Nf4 Qe7 16. Qe2 Rfd8 17. Rb1 Ne5 18. Nd4 a6 19. a4 h5 20. f3 Qf6 21. Qf2 h4 22. b3 d5 23. exd5 Bxd5 24. Nxd5 {Aronian,L (2773)-Carlsen,M (2863) chess24.com INT 2020 1-0 (58)}) 10. Bd3 {[%emt 0:05:06]} Be6 $146 {[%emt 0:02:02]} ({RR} 10... Nc6 11. Rd1 Be6 12. e5 Ne8 13. exd6 Nxd6 14. Qf4 Qa5 15. Bd2 Qb4 16. Na4 Qxf4 17. Bxf4 Rad8 18. Nc5 Bc8 19. c3 h6 20. Ne4 Nxe4 21. Bxe4 Be6 22. Bxc6 bxc6 23. a3 Bb3 24. Re1 e6 25. Be3 {Murzin,V (2612)-Grebnev,A (2488) Batumi GEO 2023 ½-½ (52)}) ({RR} 10... a6 11. a4 Be6 12. Qe2 Rc8 13. Rd1 Qb6 14. Be3 Qxb2 15. Nb5 Bc4 16. Qe1 Bxd3 17. cxd3 axb5 18. Qxa5 bxa4 19. Qxa4 Qc2 20. Qb4 Qc7 21. Ra7 Qc2 22. Qb1 Rfd8 23. Rc1 Qxb1 24. Rxb1 Rd7 25. Rbxb7 {Antal,G (2563)-Vykouk,J (2483) Germany GER 2024 ½-½}) 11. Rd1 {[%emt 0:05:27]} Qc8 $146 {[%emt 0:09:44]} ({Predecessor:} 11... Nd7 12. Nd5 Nb6 13. Qg5 Nxd5 14. exd5 h6 15. Qg3 Bxd5 16. Bxg6 Bxf3 17. Bd3 Bh5 18. Bxh6 {1-0 Varga,Z (2371)-Nguyen,T (2117) Budapest Vezerkepzo IM 11 2023 (3)}) 12. Qe1 {[%emt 0:03:19]} Re8 {[%emt 0:06:18]} 13. Rb1 {[%emt 0:05:35]} a6 {[%emt 0:07:05]} 14. b3 {[%emt 0:09:57]} Nc6 {[%emt 0:02:40]} 15. Bf1 {[%emt 0:07:58]} Nb4 {[%emt 0:02:51]} 16. Nd4 {[%emt 0:06:11]} Bd7 {[%emt 0:04:51]} 17. Ba3 {[%emt 0:06:52]} Nc6 {[%emt 0:01:21]} 18. Nf3 {[%emt 0:00:24]} b5 {[%emt 0:01:28]} 19. Bb2 {[%emt 0:02:37]} Nb4 {[%emt 0:01:48]} 20. Rd2 {[%emt 0:05:26]} Bh6 {[%emt 0:11:14]} 21. Re2 {[%emt 0:07:28]} (21. a3 $5 Nc6 22. Nd5 Nxd5 23. Rxd5 $11 (23. exd5 Ne5 $16)) 21... e5 {[%emt 0:00:40]} 22. a3 {[%emt 0:04:58]} Nc6 {[%emt 0:00:19]} 23. Bc1 {[%emt 0:01:21]} Bxc1 {[%emt 0:01:31]} 24. Rxc1 {[%emt 0:00:04]} Nd4 {[%emt 0:00:32]} 25. Re3 {[%emt 0:01:51]} Qc5 {[%emt 0:10:09]} 26. b4 {[%emt 0:01:12]} Qa7 {[%emt 0:01:26]} 27. Qd2 {[%emt 0:04:52]} Bc6 {[%emt 0:00:16]} 28. Rce1 {[%emt 0:00:28]} Rac8 {[%emt 0:01:35]} 29. Rd3 {[%emt 0:02:28]} Nxf3+ {[%emt 0:01:40]} (29... Nxc2 $5 30. Qxc2 Bxe4 $11) 30. Rxf3 {[%emt 0:00:08]} Qe7 {[%emt 0:01:34]} 31. a4 {[%emt 0:00:39]} Rb8 {[%emt 0:04:28]} 32. axb5 {[%emt 0:02:26]} (32. Qg5 {feels hotter.} Kg7 33. axb5 axb5 34. Qd2) 32... axb5 {[%emt 0:00:08]} 33. Rd3 {[%emt 0:02:00]} Red8 {[%emt 0:00:41]} 34. Rd1 {[%emt 0:00:59]} Nxe4 {[%emt 0:03:20]} 35. Nxe4 {[%emt 0:00:05]} Bxe4 {[%emt 0:00:05]} 36. Rxd6 {[%emt 0:00:04]} Rxd6 {[%emt 0:01:51]} 37. Qxd6 {[%emt 0:00:05]} Qxd6 {[%emt 0:00:09]} 38. Rxd6 {[%emt 0:00:04]} 1/2-1/2

[Event "XTX Markets London Classic-Elite 2024"]
[Site "London"]
[Date "2024.12.06"]
[Round "7.3"]
[White "Royal, Shreyas"]
[Black "Mamedyarov, Shakhriyar"]
[Result "0-1"]
[WhiteElo "2520"]
[BlackElo "2738"]
[Annotator "TA"]
[PlyCount "122"]
[EventDate "2024.??.??"]
[TimeControl "60"]

{[%evp 41,122,-184,-179,-216,-220,-204,-218,-219,-216,-220,-224,-216,-202,-185,-141,-149,-104,-107,-110,-91,-97,-91,-97,-104,-90,-111,-122,-143,-144,-126,-137,-127,-41,-55,-20,-22,-10,-11,-19,-185,-178,-263,-254,-255,-245,-245,-262,-262,-254,-302,-302,-294,-140,-287,-232,-365,-372,-445,-434,-404,-314,-382,-340,-379,-369,-478,-472,-1054,-1054,-1082,-1082,-1082,-1082,-1082,-1076,-1076,-573,-925,-498,-491,-491,-472,-423]} 1. d4 {[%emt 1:31:00]} Nf6 {[%emt 0:00:14]} 2. c4 {[%emt 0:00:00]} g6 {[%emt 0:00:09]} 3. Nc3 {[%emt 0:00:00]} d5 {[%emt 0:00:07]} 4. Bg5 {[%emt 0:00:00]} Ne4 {[%emt 0:00:29]} 5. Bh4 {[%emt 0:00:00]} g5 {[%emt 0:00:35]} 6. Bg3 {[%emt 0:00:00] D80: Grünfeld: Unusual White 4th moves and 4 Bg5.} h5 {[%emt 0:01:01]} 7. Nxe4 {[%emt 0:00:00]} dxe4 {[%emt 0:00:09]} 8. h4 {[%emt 0:00:00]} e5 {[%emt 0:00:30]} 9. a3 {[%emt 0:00:00]} exd4 {[%emt 0:02:58]} 10. Be5 {[%emt 0:00:00]} Rh6 {[%emt 0:27:11]} 11. Qxd4 {[%emt 0:00:00]} Qxd4 {[%emt 0:01:01]} 12. Bxd4 {[%emt 0:00:00]} g4 {[%emt 0:00:02]} 13. O-O-O $146 {[%emt 0:00:00]} ({Predecessor:} 13. e3 Be6 14. Ne2 Bxc4 15. Rc1 Bxe2 16. Bxe2 c6 17. f3 gxf3 18. gxf3 Nd7 19. fxe4 {0-1 Meskovs,N (2513)-Tomczak,J (2583) Berlin Lasker 150 blitz op 2018 (8)}) ({RR} 13. e3 Be6 14. Ne2 Bxc4 15. Rc1 Bxe2 16. Bxe2 c6 17. f3 gxf3 18. gxf3 Nd7 19. fxe4 Be7 20. e5 O-O-O 21. b4 Kc7 22. Bf3 f6 23. e6 Nf8 24. Bxa7 Nxe6 25. Rc3 f5 26. Ke2 Bf6 27. Rc2 Ra8 {Meskovs,N (2513)-Tomczak,J (2583) Berlin 2018 0-1}) 13... Be6 {[%emt 0:07:22]} 14. e3 {[%emt 0:00:00]} Nc6 {[%emt 0:00:26]} 15. Bc3 {[%emt 0:00:00]} Bd6 {[%emt 0:00:50]} 16. Ne2 {[%emt 0:00:00]} Bxc4 {[%emt 0:00:30]} 17. Nd4 {[%emt 0:00:00]} Bxf1 {[%emt 0:05:26]} 18. Rhxf1 {[%emt 0:00:00]} Ne7 {[%emt 0:01:49]} 19. Nb5 {[%emt 0:00:00]} Rd8 {[%emt 0:09:10]} 20. Rd4 {[%emt 0:00:00]} f5 {[%emt 0:01:11]} 21. f3 {[%emt 0:00:00]} exf3 {[%emt 0:01:43]} 22. gxf3 {[%emt 0:00:00]} Bh2 {[%emt 0:00:31]} 23. fxg4 {[%emt 0:00:00]} (23. Rxd8+ Kxd8 24. fxg4 fxg4 $19 (24... hxg4 25. Nd4 $17)) 23... hxg4 {[%emt 0:04:57]} 24. Rxd8+ {[%emt 0:00:00]} Kxd8 {[%emt 0:00:02]} 25. Nd4 {[%emt 0:00:00]} Rh5 {[%emt 0:01:15]} (25... Rxh4 26. Nxf5 Nxf5 27. Rxf5) 26. Ne6+ {[%emt 0:00:00]} Kd7 {[%emt 0:00:09]} 27. Ng7 {[%emt 0:00:00]} Rxh4 {[%emt 0:00:50]} 28. Nxf5 {[%emt 0:00:00]} Rh3 {[%emt 0:07:27]} 29. Rd1+ {[%emt 0:00:00]} Ke8 {[%emt 0:00:43]} 30. Nxe7 {[%emt 0:00:00]} Kxe7 {[%emt 0:00:10]} 31. Rd4 {[%emt 0:00:00]} Rg3 {[%emt 0:00:32]} 32. Kd2 {[%emt 0:00:00]} Rg2+ {[%emt 0:01:58]} 33. Kd3 {[%emt 0:00:00]} Bd6 {[%emt 0:02:09]} 34. Rd5 {[%emt 0:00:00]} g3 {[%emt 0:00:50]} 35. Rg5 {[%emt 0:00:00]} Rf2 {[%emt 0:00:28]} 36. e4 {[%emt 0:00:00]} Bf4 {[%emt 0:00:28]} (36... g2 $1 $17 37. Bd4 Rf3+ (37... Bf4 38. Rg7+ Kf8 39. Rg4 $15) 38. Ke2 Rg3 39. Rxg3 Bxg3) 37. Rg7+ $15 {[%emt 0:00:00]} Kf8 {[%emt 0:00:11]} 38. Rg4 $1 {[%emt 0:00:00]} c5 {[%emt 0:01:34]} (38... Bc1 {simplifies} 39. Rxg3 Bxb2 40. Bxb2 Rxb2 41. Kd4 Rf2) 39. Be1 $1 {[%emt 0:02:23]} Rf3+ {[%emt 0:00:13]} 40. Ke2 $2 {[%emt 0:01:38]} (40. Kc4 $11) 40... Re3+ $19 {[%emt 0:01:08]} 41. Kd2 {[%emt 0:30:20]} (41. Kd1 {was necessary.} Be5 (41... Rxe4 42. Bd2 $15) 42. Rg5 Bxb2 43. Bxg3) 41... Rxe4+ $19 {[%emt 0:34:20]} (41... Rxa3+ $2 {is the wrong capture.} 42. Rxf4+ Ke8 43. bxa3 $18) 42. Kd1 {[%emt 0:00:19]} Rd4+ $1 {[%emt 0:02:46]} 43. Kc2 {[%emt 0:00:08] [#]} Bd6 $1 {[%emt 0:04:32]} 44. Rg5 {[%emt 0:01:13]} Rc4+ {[%emt 0:00:05]} 45. Kd1 {[%emt 0:07:41]} Bf4 {[%emt 0:00:22]} 46. Rg4 {[%emt 0:00:17]} Rc1+ {[%emt 0:01:28]} 47. Ke2 {[%emt 0:00:01] [#]} Be5 $1 {[%emt 0:00:09]} 48. b3 {[%emt 0:03:37]} (48. Bxg3 $142 Rc2+ (48... Bxb2 $2 49. Bf4 $19) 49. Ke3 Bxg3 (49... Bxb2 $2 50. Kd3 $19) 50. Rxg3) 48... Kf7 $19 {[%emt 0:05:08]} (48... Rc2+ 49. Kf1 $19) 49. Rg5 {[%emt 0:03:36]} Kf6 {[%emt 0:00:41]} 50. Rg8 {[%emt 0:00:01]} Ra1 {[%emt 0:01:53]} 51. a4 {[%emt 0:00:35]} Rb1 {[%emt 0:00:30]} 52. Bxg3 {[%emt 0:00:23]} Rxb3 {[%emt 0:00:20]} 53. Bf2 {[%emt 0:00:17]} Bd4 {[%emt 0:01:58]} 54. Bxd4+ {[%emt 0:02:32]} (54. Bh4+ $142 Ke6 55. a5) 54... cxd4 $19 {[%emt 0:00:04]} 55. Rd8 {[%emt 0:00:09]} Ke5 {[%emt 0:00:11]} 56. a5 {[%emt 0:00:03]} a6 {[%emt 0:01:00]} 57. Rd7 {[%emt 0:00:07]} Ke4 {[%emt 0:01:38]} 58. Kd2 {[%emt 0:00:05]} d3 {[%emt 0:01:10]} 59. Rd6 {[%emt 0:00:31]} Rb2+ {[%emt 0:00:28]} 60. Kc1 {[%emt 0:00:05]} Rb5 {[%emt 0:00:20]} 61. Rd7 {[%emt 0:00:04]} Ke3 {[%emt 0:00:30]} ({Less strong is} 61... Rxa5 62. Rxb7 Rh5 63. Kd2 $11) 0-1

[Event "XTX Markets London Classic-Elite 2024"]
[Site "London"]
[Date "2024.12.06"]
[Round "7.4"]
[White "Vidit, Santosh Gujrathi"]
[Black "Vitiugov, Nikita"]
[Result "1/2-1/2"]
[WhiteElo "2739"]
[BlackElo "2668"]
[Annotator "TA"]
[PlyCount "68"]
[EventDate "2024.??.??"]
[TimeControl "60"]

{[%evp 12,68,19,6,6,6,0,7,3,0,0,0,0,0,0,0,12,0,0,0,0,0,-7,0,0,0,0,0,0,0,0,-156,-145,-148,-136,-138,0,0,0,0,0,0,0,0,0,0,0,0,0,0,0,0,0,0,0,0,0,0,0]} 1. c4 {[%emt 0:00:35]} Nf6 {[%emt 0:00:34]} 2. Nf3 {[%emt 0:01:40]} e6 {[%emt 0:00:29]} 3. b3 {[%emt 0:02:26]} d5 {[%emt 0:01:20]} 4. Bb2 {[%emt 0:00:11]} c5 {[%emt 0:00:45][%cal Bc7c5,Bc5d4][%mdl 32]} 5. e3 {[%emt 0:03:49]} Nc6 {[%emt 0:01:00]} 6. cxd5 {[%emt 0:00:21]} exd5 {[%emt 0:00:09]} 7. Be2 {[%emt 0:04:47]} d4 {[%emt 0:02:36]} 8. exd4 {[%emt 0:00:13]} cxd4 {[%emt 0:01:09] [#] And now ...d3 would win.} 9. Bb5 {[%emt 0:00:10][%cal Oe1g1]} Bc5 {[%emt 0:07:12]} 10. Qe2+ {[%emt 0:00:15]} Be6 {[%emt 0:01:34]} 11. Bxc6+ {[%emt 0:07:50]} bxc6 {[%emt 0:00:15]} 12. Qe5 {[%emt 0:00:02][%csl Bc5,Bd4]} Bd6 {[%emt 0:01:34]} 13. Qxd4 {[%emt 0:00:23]} O-O {[%emt 0:01:20]} 14. O-O {[%emt 0:17:21]} Bd5 {[%emt 0:02:42]} 15. Qh4 {[%emt 0:07:15]} Bxf3 {[%emt 0:02:45] A strong pair of Bishops.} 16. Bxf6 {[%emt 0:01:33]} gxf6 {[%emt 0:01:41]} 17. gxf3 {[%emt 0:00:07]} Be5 {[%emt 0:02:26]} 18. Nc3 {[%emt 0:00:31]} Qd3 {[%emt 0:06:46]} 19. Qh3 $146 {[%emt 0:03:07]} ({RR} 19. Rfe1 Kh8 20. Re3 Rg8+ 21. Kh1 Qg6 22. Qh3 Rg7 23. Rf1 Bxc3 24. Rxc3 Rag8 25. Rcc1 Qg5 26. Rfe1 Rg6 27. Rcd1 Rh6 28. Qg4 Qd5 29. Qf4 Rxh2+ {0-1 (29) Boyer,M (2455)-Poetsch,H (2464) Lyon FRA 2024}) ({RR} 19. Rfe1 Kh8 20. Re3 Rg8+ 21. Kh1 Qg6 22. Qh3 Rg7 23. Rf1 Bxc3 24. Rxc3 Rag8 25. Rcc1 Qg5 26. Rfe1 Rg6 27. Rcd1 Rh6 28. Qg4 Qd5 29. Qf4 Rxh2+ {0-1 (29) Boyer,M (2455)-Poetsch,H (2464) Lyon FRA 2024}) 19... Kh8 {[%emt 0:06:14][%cal Of6f5] Strongly threatening ...f5!} 20. Kh1 {[%emt 0:00:29]} Rg8 {[%emt 0:09:41][%cal Og8g6]} 21. Rg1 $2 {[%emt 0:13:24] [#]} (21. Rac1 $11) 21... f5 $1 $17 {[%emt 0:10:36]} (21... Qxd2 22. Ne4 Qf4 23. Rxg8+ Rxg8 24. Rg1 $11) 22. Rae1 {[%emt 0:03:53]} Qxd2 {[%emt 0:14:51]} 23. Nd1 {[%emt 0:02:15]} (23. Rxe5 $2 Rxg1+ 24. Kxg1 Qxc3 $19 (24... Qc1+ $2 25. Kg2 $19)) 23... Bd4 {[%emt 0:04:38]} (23... Rxg1+ $17 24. Rxg1 f4 (24... Qxa2 25. Qxf5 Bd4 26. Qe4 $11) (24... Rg8 25. Rxg8+ Kxg8 26. Ne3 $15)) 24. Qxf5 $11 {[%emt 0:02:01] The position is equal.} Rg6 {[%emt 0:03:51]} 25. Ref1 {[%emt 0:11:29]} Rxg1+ {[%emt 0:02:06]} 26. Rxg1 {[%emt 0:00:07]} Rg8 {[%emt 0:00:34]} 27. Ne3 {[%emt 0:02:14]} Rxg1+ $1 {[%emt 0:00:50]} (27... Qxf2 $2 {perishes.} 28. Rxg8+ Kxg8 29. Qc8+ Kg7 30. Qg4+ Kf8 31. Qxd4 $18) 28. Kxg1 {[%emt 0:00:02]} Bxe3 {[%emt 0:00:25]} 29. Qe5+ {[%emt 0:00:43]} Kg8 {[%emt 0:00:05]} 30. fxe3 {[%emt 0:01:39]} Qxa2 {[%emt 0:00:18]} 31. Qg5+ {[%emt 0:00:10]} Kf8 {[%emt 0:00:22]} 32. Qd8+ {[%emt 0:03:12]} Kg7 {[%emt 0:00:08]} 33. Qg5+ {[%emt 0:00:05]} Kf8 {[%emt 0:00:03]} 34. Qd8+ {[%emt 0:01:05]} Kg7 {[%emt 0:00:06] Weighted Error Value: White=0.09 (flawless) /Black=0.07 (flawless) . Mistake: 	White=1 	Black=1 OK: 	White=10 	Black=13 Best: 	White=4 	Black=3 Strong: 	--- 	Black=2} 1/2-1/2